bitfinex-derivatives/quotes_BTCF0:USTF0_20250528
["timestamp","ask_amount","ask_price","bid_price","bid_amount"]
[1748424064231,1.2012403,108760.0,108750.0,0.00025753]
[1748424064421,1.2012403,108760.0,108750.0,0.00013753]
[1748424064616,1.2012403,108760.0,108750.0,0.00025753]
[1748424064810,1.20314196,108760.0,108750.0,0.00025753]
[1748424065217,0.95314196,108760.0,108750.0,0.00025753]
[1748424065629,1.20314196,108760.0,108750.0,0.00025753]
[1748424065827,0.183833,108740.0,108730.0,0.64036319]
[1748424066023,0.183833,108740.0,108730.0,0.12164319]
[1748424066024,0.66627619,108740.0,108730.0,0.12164319]
[1748424066223,0.69907619,108740.0,108730.0,0.21952319]
[1748424066528,0.85321938,108740.0,108730.0,0.09788]
[1748424066728,0.85321938,108740.0,108730.0,0.098]
[1748424067228,0.85321938,108740.0,108730.0,0.00012]
[1748424067411,0.1838499,108730.0,108720.0,0.64188042]
[1748424067615,0.72749309,108730.0,108720.0,0.64188042]
[1748424068017,0.6058499,108730.0,108720.0,0.09939723]
[1748424068217,0.6058499,108730.0,108720.0,0.52023723]
[1748424069028,1.64380046,108730.0,108720.0,3e-08]
[1748424069324,2.10294317,108730.0,108720.0,3e-08]
[1748424069522,0.1839176,108690.0,108680.0,0.58146]
[1748424069721,0.5447176,108690.0,108680.0,0.58146]
[1748424069922,0.2774176,108690.0,108680.0,0.70324728]
[1748424070221,0.2774176,108690.0,108680.0,0.70336728]
[1748424070812,0.2784176,108690.0,108680.0,0.70936728]
[1748424071013,0.2784176,108690.0,108680.0,1.07016728]
[1748424071219,0.2473176,108690.0,108680.0,1.07016728]
[1748424071421,0.2483176,108690.0,108680.0,1.07516728]
[1748424073022,0.2483176,108690.0,108680.0,0.55640728]
[1748424073229,0.2483176,108690.0,108680.0,1.07528728]
[1748424074826,0.2483176,108690.0,108680.0,0.65432728]
[1748424075026,0.2483176,108690.0,108680.0,1.07532728]
[1748424075927,0.002,108690.0,108680.0,1.19711456]
[1748424076129,0.1859173,108690.0,108680.0,1.29711456]
[1748424076333,0.1859173,108690.0,108680.0,1.17532728]
[1748424076535,0.1859173,108690.0,108680.0,0.75432728]
[1748424076727,0.1859173,108690.0,108680.0,1.17532728]
[1748424079144,0.1859173,108690.0,108680.0,1.07532728]
[1748424079640,0.2504173,108690.0,108680.0,1.07532728]
[1748424080133,0.2504173,108690.0,108680.0,0.95354]
[1748424080325,0.2504173,108690.0,108680.0,1.07532728]
[1748424080523,0.37220458,108690.0,108680.0,0.07382]
[1748424080727,0.1839343,108680.0,108670.0,4e-08]
[1748424080929,0.73062158,108680.0,108670.0,4e-08]
[1748424081127,0.73062158,108680.0,108670.0,0.01286321]
[1748424081326,0.73062158,108680.0,108670.0,0.01274321]
[1748424081526,0.73062158,108680.0,108670.0,0.01286321]
[1748424081731,0.73070929,108680.0,108670.0,0.01286321]
[1748424081931,0.73070929,108680.0,108670.0,0.01277753]
[1748424082131,0.73070929,108680.0,108670.0,0.00012004]
[1748424082331,0.73170929,108680.0,108670.0,0.01277757]
[1748424083735,0.73170929,108680.0,108670.0,0.01277477]
[1748424083924,0.73070929,108680.0,108670.0,0.01277477]
[1748424084129,0.73270929,108680.0,108670.0,0.00012004]
[1748424085935,0.61092201,108680.0,108670.0,0.00012004]
[1748424086129,0.25012201,108680.0,108670.0,0.51360732]
[1748424086329,0.25012201,108680.0,108670.0,0.54650732]
[1748424087733,0.183968,108660.0,108650.0,0.5204201]
[1748424087937,0.183968,108660.0,108650.0,1.24939238]
[1748424088143,0.183968,108660.0,108650.0,0.70472738]
[1748424088442,0.249268,108660.0,108650.0,0.62044956]
[1748424088630,0.249268,108660.0,108650.0,0.98124956]
[1748424088827,0.184968,108660.0,108650.0,0.98324956]
[1748424089025,0.186968,108660.0,108650.0,1.01434956]
[1748424089636,0.186968,108660.0,108650.0,0.57820728]
[1748424089834,0.186968,108660.0,108650.0,1.09724728]
[1748424090130,0.186968,108660.0,108650.0,0.67616728]
[1748424090440,0.186968,108660.0,108650.0,1.09728728]
[1748424091235,0.217968,108660.0,108650.0,1.09728728]
[1748424091942,0.217968,108660.0,108650.0,1.09716728]
[1748424092144,0.217968,108660.0,108650.0,1.09728728]
[1748424094639,0.217968,108660.0,108650.0,0.57820728]
[1748424094839,0.217968,108660.0,108650.0,1.09728728]
[1748424095936,0.003,108660.0,108650.0,1.31907456]
[1748424096139,0.186968,108660.0,108650.0,1.31907456]
[1748424096341,0.186968,108660.0,108650.0,1.09728728]
[1748424097541,0.186968,108660.0,108650.0,0.9755]
[1748424097742,0.186968,108660.0,108650.0,1.09728728]
[1748424101644,0.003,108660.0,108650.0,1.28127198]
[1748424101848,0.003,108660.0,108650.0,1.50305926]
[1748424102250,0.003,108660.0,108650.0,1.5437446]
[1748424104049,0.00013753,108670.0,108660.0,0.1]
[1748424104252,0.00013753,108670.0,108660.0,0.76687456]
[1748424104443,0.00013753,108670.0,108660.0,0.95084226]
[1748424105242,0.00113753,108670.0,108660.0,0.95084226]
[1748424105559,0.00213753,108670.0,108660.0,0.95084226]
[1748424105852,0.18608823,108670.0,108660.0,0.9915276]
[1748424106155,0.18608823,108670.0,108660.0,0.8915276]
[1748424106957,0.18608823,108670.0,108660.0,0.20110534]
[1748424107147,0.37057551,108670.0,108660.0,0.13860534]
[1748424107449,0.37057551,108670.0,108660.0,0.09792]
[1748424107650,0.24878823,108670.0,108660.0,0.09804]
[1748424107852,0.60958823,108670.0,108660.0,0.09804]
[1748424108147,0.60958823,108670.0,108660.0,0.21982728]
[1748424108336,0.65089421,108670.0,108660.0,0.21982728]
[1748424108854,0.65089421,108670.0,108660.0,0.64094728]
[1748424110948,0.65095095,108670.0,108660.0,0.64094728]
[1748424111252,0.65095095,108670.0,108660.0,0.00012]
[1748424111547,0.65095095,108670.0,108660.0,0.64094728]
[1748424114553,0.60958823,108670.0,108660.0,0.64094728]
[1748424115052,0.77280501,108670.0,108660.0,0.00012]
[1748424115248,0.77280274,108670.0,108660.0,0.00012]
[1748424115450,0.1839846,108650.0,108640.0,0.2937733]
[1748424115650,0.1839846,108650.0,108640.0,0.8988949]
[1748424115853,0.2484846,108650.0,108640.0,0.8988949]
[1748424116552,0.23353456,108650.0,108640.0,0.34290577]
[1748424116742,0.23353456,108650.0,108640.0,0.8988948]
[1748424116946,0.0655,108650.0,108640.0,0.9008948]
[1748424117145,0.0655,108650.0,108640.0,0.35798752]
[1748424117354,0.0655,108650.0,108640.0,0.98252727]
[1748424117856,0.0655,108650.0,108640.0,1.30437436]
[1748424118058,0.0655,108650.0,108640.0,1.34540671]
[1748424118251,0.2494846,108650.0,108640.0,0.77550181]
[1748424118449,0.0655,108650.0,108640.0,1.25350946]
[1748424118862,0.2494846,108650.0,108640.0,1.25350946]
[1748424119161,0.0655,108650.0,108640.0,1.35350946]
[1748424119655,0.0655,108650.0,108640.0,1.30437436]
[1748424119855,0.0655,108650.0,108640.0,0.78533436]
[1748424120044,0.0655,108650.0,108640.0,1.30445436]
[1748424120655,0.2494846,108650.0,108640.0,1.30445436]
[1748424123152,0.2494846,108650.0,108640.0,1.35358683]
[1748424123351,0.0655,108650.0,108640.0,0.83446683]
[1748424123552,0.0655,108650.0,108640.0,1.33535436]
[1748424124154,0.0655,108650.0,108640.0,1.30445436]
[1748424124457,0.0655,108650.0,108640.0,1.18266708]
[1748424124659,0.0655,108650.0,108640.0,1.30445436]
[1748424124970,0.0655,108650.0,108640.0,1.40445436]
[1748424125148,0.0655,108650.0,108640.0,1.30445436]
[1748424126843,0.0655,108650.0,108640.0,1.25358946]
[1748424127053,0.0322,108650.0,108640.0,1.35358946]
[1748424127362,0.001,108650.0,108640.0,1.35358946]
[1748424127546,0.001,108650.0,108640.0,1.40486118]
[1748424127547,0.0341,108650.0,108640.0,1.40486118]
[1748424127858,0.001,108650.0,108640.0,1.40486118]
[1748424128357,0.001,108650.0,108640.0,1.30494118]
[1748424128562,0.001,108650.0,108640.0,1.23223556]
[1748424128563,0.0643,108650.0,108640.0,1.23223556]
[1748424128759,0.04935131,108650.0,108640.0,0.78367112]
[1748424129053,0.04935131,108650.0,108640.0,1.60323748]
[1748424130152,0.01915131,108650.0,108640.0,1.60323748]
[1748424130349,0.0621,108660.0,108650.0,0.1839847]
[1748424130551,0.0621,108660.0,108650.0,1.4653336]
[1748424131164,0.0621,108660.0,108650.0,1.34832515]
[1748424131462,0.0319,108660.0,108650.0,1.3992357]
[1748424131647,0.0319,108660.0,108650.0,1.08223243]
[1748424131848,0.0319,108660.0,108650.0,1.75051507]
[1748424132162,0.00124102,108670.0,108660.0,0.1839678]
[1748424132356,0.00124102,108670.0,108660.0,1.01672785]
[1748424132551,0.00124102,108670.0,108660.0,0.97152383]
[1748424133165,0.00124102,108670.0,108660.0,2.24353817]
[1748424133863,0.00124102,108670.0,108660.0,2.66465817]
[1748424134168,0.00124102,108670.0,108660.0,2.66565817]
[1748424134459,0.00224102,108670.0,108660.0,2.66565817]
[1748424134764,0.00224102,108670.0,108660.0,2.66563098]
[1748424134961,0.00224102,108670.0,108660.0,2.53693664]
[1748424135963,0.00224102,108670.0,108660.0,2.48787438]
[1748424138164,0.00224102,108670.0,108660.0,2.53693664]
[1748424138364,0.00224102,108670.0,108660.0,2.66563098]
[1748424139064,0.00224102,108670.0,108660.0,2.66553159]
[1748424140267,0.00224102,108670.0,108660.0,2.53683725]
[1748424143267,0.00224102,108670.0,108660.0,2.5368095]
[1748424143570,0.00224102,108670.0,108660.0,2.65357136]
[1748424143755,0.00224102,108670.0,108660.0,2.5368095]
[1748424143961,0.00224102,108670.0,108660.0,2.46501748]
[1748424145163,0.0313,108690.0,108680.0,0.1839341]
[1748424145367,0.0644,108690.0,108680.0,1.40235751]
[1748424145568,0.0644,108690.0,108680.0,1.46715751]
[1748424145569,0.0958,108690.0,108680.0,1.46715751]
[1748424145961,0.0958,108690.0,108680.0,0.80759055]
[1748424146267,0.0958,108690.0,108680.0,1.35041783]
[1748424146467,0.0958,108690.0,108680.0,1.35053783]
[1748424146867,0.0988,108690.0,108680.0,1.35153783]
[1748424147774,0.0988,108690.0,108680.0,1.35152779]
[1748424148072,0.0988,108690.0,108680.0,1.22974051]
[1748424148268,0.0988,108690.0,108680.0,1.35152779]
[1748424149277,0.0978,108690.0,108680.0,1.35152779]
[1748424149672,0.0978,108690.0,108680.0,1.35152992]
[1748424150369,0.0978,108690.0,108680.0,1.4682696]
[1748424151272,0.0978,108690.0,108680.0,1.46827012]
[1748424152364,0.0978,108690.0,108680.0,1.36814106]
[1748424152567,0.0978,108690.0,108680.0,1.25140138]
[1748424154678,0.0978,108690.0,108680.0,1.30256271]
[1748424155177,0.0978,108690.0,108680.0,1.25140138]
[1748424155583,0.0978,108690.0,108680.0,1.30256271]
[1748424156271,1.09936546,108690.0,108660.0,0.1885317]
[1748424156580,0.1839847,108650.0,108640.0,0.00138068]
[1748424156768,0.9055847,108650.0,108640.0,0.00138068]
[1748424156973,0.9697847,108650.0,108640.0,0.12316796]
[1748424157175,0.9697847,108650.0,108640.0,0.00150068]
[1748424157479,0.9697847,108650.0,108640.0,0.52038068]
[1748424157683,1.09157198,108650.0,108640.0,0.52038068]
[1748424158679,1.09257198,108650.0,108640.0,0.52338068]
[1748424159770,1.12577198,108650.0,108640.0,0.52238068]
[1748424160673,1.12577198,108650.0,108640.0,0.52246068]
[1748424160874,1.12577198,108650.0,108640.0,0.00350068]
[1748424161176,1.12577198,108650.0,108640.0,0.52246068]
[1748424162566,1.12577198,108650.0,108640.0,0.70646248]
[1748424162567,1.0039847,108650.0,108640.0,0.70646248]
[1748424162976,1.0039847,108650.0,108640.0,0.73946248]
[1748424163485,1.0039847,108650.0,108640.0,0.03650068]
[1748424163676,1.0039847,108650.0,108640.0,0.55550068]
[1748424163874,1.0039847,108650.0,108610.0,0.00184137]
[1748424163875,0.1840357,108620.0,108610.0,0.00184137]
[1748424164179,1.02816426,108620.0,108610.0,0.014281]
[1748424164375,1.21653227,108620.0,108610.0,0.01475345]
[1748424164779,1.42053097,108620.0,108600.0,0.62784]
[1748424164977,0.73031052,108610.0,108600.0,0.62784]
[1748424165174,0.72432799,108610.0,108600.0,0.62796]
[1748424165786,0.72432799,108610.0,108600.0,0.20304]
[1748424166584,0.72432799,108610.0,108600.0,0.62784]
[1748424166880,0.72432799,108610.0,108600.0,0.10512]
[1748424167074,0.72432799,108610.0,108600.0,0.20304]
[1748424167268,0.72432799,108610.0,108600.0,0.62776]
[1748424167476,0.72532799,108610.0,108600.0,0.62776]
[1748424167778,0.60354071,108610.0,108600.0,0.62776]
[1748424168575,0.72532799,108610.0,108600.0,0.62776]
[1748424168982,0.72532799,108610.0,108600.0,0.6278]
[1748424170070,0.72532799,108610.0,108600.0,0.6608]
[1748424171081,0.60354071,108610.0,108600.0,0.6608]
[1748424171675,0.60354071,108610.0,108600.0,0.6915]
[1748424171879,0.60354071,108610.0,108600.0,0.8755696]
[1748424172788,0.60354071,108610.0,108600.0,0.6915]
[1748424172990,0.60354071,108610.0,108600.0,0.8755696]
[1748424173179,0.60354071,108610.0,108600.0,0.6915]
[1748424174079,0.54024071,108610.0,108600.0,0.99735688]
[1748424175977,0.54024071,108610.0,108600.0,1.11914416]
[1748424175978,0.36217064,108610.0,108600.0,1.11914416]
[1748424176184,0.36217064,108610.0,108600.0,2.04103688]
[1748424177386,0.36217064,108610.0,108600.0,2.14103688]
[1748424177591,0.00137064,108610.0,108600.0,2.14103688]
[1748424177888,0.00137064,108610.0,108600.0,2.16282416]
[1748424178089,0.00137064,108610.0,108600.0,2.26282416]
[1748424178785,0.00137064,108610.0,108600.0,2.62362416]
[1748424179191,0.00137064,108610.0,108600.0,2.71570016]
[1748424179502,0.00037064,108620.0,108610.0,0.1840529]
[1748424179693,0.00013753,108630.0,108620.0,0.184036]
[1748424179893,0.3618,108650.0,108640.0,0.1840021]
[1748424180196,0.36142936,108650.0,108640.0,0.92889066]
[1748424180381,0.00062936,108650.0,108640.0,1.35229066]
[1748424180985,0.00262936,108650.0,108640.0,1.35229066]
[1748424181997,0.00262936,108650.0,108640.0,1.36382253]
[1748424182499,0.00262936,108650.0,108640.0,1.49714168]
[1748424183194,0.00162936,108650.0,108640.0,1.49914168]
[1748424183699,0.00062936,108650.0,108640.0,1.49714168]
[1748424183884,0.00162936,108650.0,108640.0,1.49914168]
[1748424184090,1e-08,108660.0,108650.0,0.1839851]
[1748424184287,1e-08,108660.0,108650.0,1.88486425]
[1748424184594,0.3608,108690.0,108680.0,0.1839344]
[1748424184797,0.3608,108690.0,108680.0,0.83965355]
[1748424184987,0.3608,108690.0,108680.0,0.93445355]
[1748424185188,0.3608,108700.0,108690.0,0.1839174]
[1748424185388,0.3608,108700.0,108690.0,0.38013655]
[1748424185691,0.42513753,108710.0,108700.0,0.1839005]
[1748424185987,0.42513753,108710.0,108700.0,0.90247965]
[1748424186297,0.42513753,108710.0,108700.0,0.76953114]
[1748424186894,0.42613753,108710.0,108700.0,0.58663064]
[1748424187097,0.42613753,108710.0,108700.0,0.77053114]
[1748424188000,0.42613753,108710.0,108700.0,0.77193114]
[1748424189303,0.42613753,108710.0,108700.0,0.90525029]
[1748424189498,0.36193753,108710.0,108700.0,0.90525029]
[1748424189705,0.36193753,108710.0,108700.0,0.93665029]
[1748424190003,0.37214,108720.0,108710.0,0.1838836]
[1748424190199,0.01134,108720.0,108710.0,0.37927339]
[1748424190503,0.37214,108720.0,108710.0,0.37927339]
[1748424191191,0.37214,108720.0,108710.0,0.24595424]
[1748424191395,0.37214,108720.0,108710.0,0.76975424]
[1748424191396,0.5560067,108720.0,108710.0,0.76975424]
[1748424191599,0.6189067,108720.0,108710.0,0.76975424]
[1748424191789,0.43504,108720.0,108710.0,0.76987424]
[1748424192496,0.43504,108720.0,108710.0,0.90319339]
[1748424192893,0.6189067,108720.0,108710.0,0.76979424]
[1748424193099,0.6219067,108720.0,108710.0,0.77079424]
[1748424193595,0.43804,108720.0,108710.0,0.77079424]
[1748424194005,0.6219067,108720.0,108710.0,0.77079424]
[1748424195300,0.6219067,108720.0,108710.0,0.06319064]
[1748424195502,0.75522585,108720.0,108710.0,0.13247064]
[1748424195708,0.6219067,108720.0,108710.0,0.10097064]
[1748424195906,0.6219067,108720.0,108710.0,0.52489064]
[1748424196600,0.6219067,108720.0,108710.0,0.52501064]
[1748424196798,0.6219067,108720.0,108710.0,0.52489064]
[1748424197301,0.6219067,108720.0,108710.0,0.52501064]
[1748424197904,0.6219067,108720.0,108710.0,0.70889424]
[1748424200609,0.43804,108720.0,108710.0,0.84221339]
[1748424200801,0.43804,108720.0,108710.0,0.90601339]
[1748424201202,0.6219067,108720.0,108710.0,0.90601339]
[1748424201503,0.6219067,108720.0,108710.0,0.85227906]
[1748424202207,0.43804,108720.0,108710.0,0.85227906]
[1748424202415,0.6219067,108720.0,108710.0,0.85227906]
[1748424203407,0.6219067,108720.0,108710.0,0.7070436]
[1748424203906,0.6219067,108720.0,108710.0,0.52316]
[1748424204123,0.6219067,108720.0,108710.0,0.7070434]
[1748424204308,0.6219067,108720.0,108710.0,0.7392434]
[1748424204609,0.6219067,108720.0,108710.0,0.55536]
[1748424204815,0.6219067,108720.0,108710.0,0.03232]
[1748424205115,0.6219067,108720.0,108710.0,0.7391242]
[1748424205317,0.6219067,108720.0,108710.0,0.7390042]
[1748424205518,0.6219067,108720.0,108710.0,0.7391242]
[1748424206028,0.6219067,108720.0,108710.0,0.0996]
[1748424206315,0.6219067,108720.0,108710.0,0.523]
[1748424206815,0.6219067,108720.0,108710.0,0.00012]
[1748424207019,0.6219067,108720.0,108710.0,0.52308]
[1748424207906,0.6219067,108720.0,108710.0,0.523]
[1748424208219,0.6219067,108720.0,108710.0,0.7068842]
[1748424208914,0.75522585,108720.0,108710.0,0.0996]
[1748424209116,0.75522585,108720.0,108710.0,0.52292]
[1748424209310,0.75522585,108720.0,108710.0,0.5228]
[1748424209620,0.75522585,108720.0,108710.0,0.7068047]
[1748424211018,0.6219067,108720.0,108710.0,0.7068047]
[1748424213022,0.6219067,108720.0,108710.0,0.70717534]
[1748424213210,0.6219067,108720.0,108710.0,0.21757534]
[1748424213413,0.66231177,108720.0,108710.0,0.74005534]
[1748424213622,0.6219067,108720.0,108710.0,0.74005534]
[1748424214420,0.66233908,108720.0,108710.0,0.74005534]
[1748424215110,0.6219067,108720.0,108710.0,0.31705534]
[1748424215315,0.66234825,108720.0,108710.0,0.31705534]
[1748424216014,0.66234825,108720.0,108710.0,0.13317064]
[1748424216521,0.66234825,108720.0,108710.0,0.45037459]
[1748424216817,0.66234825,108720.0,108710.0,0.29718979]
[1748424217206,0.66234825,108720.0,108710.0,0.16387064]
[1748424217618,0.66234825,108720.0,108710.0,0.58627064]
[1748424217924,0.66234825,108720.0,108710.0,0.70805473]
[1748424218310,0.66235085,108720.0,108710.0,0.70805473]
[1748424218707,0.6219067,108720.0,108710.0,0.70805473]
[1748424219417,0.9827067,108720.0,108710.0,0.70805473]
[1748424220123,0.9827067,108720.0,108710.0,0.58627064]
[1748424221517,0.9827067,108720.0,108710.0,0.77015534]
[1748424221729,0.9827067,108720.0,108710.0,0.58627064]
[1748424223515,0.9827067,108720.0,108710.0,0.77015534]
[1748424223715,0.9827067,108720.0,108710.0,0.58627064]
[1748424224228,0.9827067,108720.0,108710.0,0.77015524]
[1748424224430,0.9827067,108720.0,108710.0,0.58627064]
[1748424225224,0.9827067,108720.0,108710.0,0.77015534]
[1748424226318,0.9827067,108720.0,108710.0,0.58627064]
[1748424226517,0.9827067,108720.0,108710.0,0.62700216]
[1748424226827,0.9827067,108720.0,108710.0,0.10512216]
[1748424227131,0.9827067,108720.0,108710.0,0.62636216]
[1748424228517,0.9827067,108720.0,108710.0,0.81024656]
[1748424228717,0.9198067,108720.0,108710.0,0.93203065]
[1748424229722,0.9198067,108720.0,108710.0,0.89129913]
[1748424232936,0.9198067,108720.0,108710.0,0.942435]
[1748424233328,0.9198067,108720.0,108710.0,0.89129913]
[1748424233724,0.9198067,108720.0,108710.0,0.942435]
[1748424236733,0.9198067,108720.0,108710.0,0.9905817]
[1748424237433,0.9198067,108720.0,108710.0,0.942435]
[1748424238227,0.9198067,108720.0,108710.0,0.9905817]
[1748424238431,0.9198067,108720.0,108710.0,0.942435]
[1748424239628,0.9198067,108720.0,108710.0,0.520115]
[1748424239828,0.9198067,108720.0,108710.0,0.941715]
[1748424240141,0.9508067,108720.0,108710.0,0.941715]
[1748424240326,0.9508067,108720.0,108710.0,0.16365383]
[1748424240526,1.10299079,108720.0,108710.0,0.68417383]
[1748424240827,1.0126067,108720.0,108710.0,0.13283383]
[1748424241028,1.0126067,108720.0,108710.0,0.08482651]
[1748424241239,1.0126067,108720.0,108710.0,0.65343383]
[1748424241537,1.0146067,108720.0,108710.0,0.68523383]
[1748424242543,1.0146067,108720.0,108710.0,0.86911903]
[1748424242742,1.0146067,108720.0,108710.0,0.86912917]
[1748424243235,1.0146067,108720.0,108710.0,0.68524397]
[1748424243538,1.13639079,108720.0,108710.0,0.65332397]
[1748424243743,1.13639079,108720.0,108710.0,0.87093649]
[1748424244039,1.13639079,108720.0,108710.0,0.68705129]
[1748424244228,1.13639079,108720.0,108710.0,0.13349129]
[1748424244430,1.13639079,108720.0,108710.0,0.23229129]
[1748424244628,1.13639079,108720.0,108710.0,0.61001973]
[1748424244831,1.13639079,108720.0,108710.0,0.60989973]
[1748424245029,1.13639079,108720.0,108710.0,0.08965973]
[1748424245233,1.13639079,108720.0,108710.0,0.46296227]
[1748424245435,0.1838852,108710.0,108700.0,1.14205753]
[1748424245733,0.73096929,108710.0,108700.0,0.00013753]
[1748424246033,1.53508579,108710.0,108700.0,1e-08]
[1748424246226,0.1839022,108700.0,108690.0,0.00138005]
[1748424246429,0.76198629,108700.0,108690.0,0.00138005]
[1748424246626,0.85398629,108700.0,108690.0,0.00150005]
[1748424249035,0.85398629,108700.0,108690.0,0.00250005]
[1748424249235,0.7322022,108700.0,108690.0,0.00250005]
[1748424249432,0.85398629,108700.0,108690.0,0.00250005]
[1748424250835,0.85398629,108700.0,108690.0,0.18641915]
[1748424250836,0.6402022,108700.0,108690.0,0.18641915]
[1748424251235,0.6402022,108700.0,108690.0,0.21921915]
[1748424251434,0.6402022,108700.0,108690.0,0.06690005]
[1748424257934,0.6402022,108700.0,108690.0,0.18868414]
[1748424258245,0.6402022,108700.0,108690.0,0.37260324]
[1748424258543,0.6402022,108700.0,108690.0,0.18868414]
[1748424258735,0.6402022,108700.0,108690.0,0.06690005]
[1748424267353,0.6402022,108700.0,108690.0,0.48818005]
[1748424269339,0.6402022,108700.0,108690.0,0.58650005]
[1748424269541,0.6402022,108700.0,108690.0,0.06690005]
[1748424269745,0.6402022,108700.0,108690.0,0.55490005]
[1748424269952,0.6402022,108700.0,108690.0,0.55478005]
[1748424270253,0.6402022,108700.0,108690.0,0.55490005]
[1748424270643,0.76198629,108700.0,108690.0,0.13358005]
[1748424270946,0.76198629,108700.0,108690.0,0.55530005]
[1748424271846,0.6402022,108700.0,108690.0,0.55530005]
[1748424272052,0.76198629,108700.0,108690.0,0.55530005]
[1748424272450,0.76198629,108700.0,108690.0,0.59621442]
[1748424274155,0.76198629,108700.0,108690.0,0.62801442]
[1748424274458,1.12278629,108700.0,108690.0,0.62801442]
[1748424276945,1.12278629,108700.0,108690.0,0.62809442]
[1748424277661,1.12278629,108700.0,108690.0,0.67650948]
[1748424278247,1.12278629,108700.0,108690.0,0.62809442]
[1748424278452,1.12278629,108700.0,108690.0,0.67650948]
[1748424281149,1.0010022,108700.0,108690.0,0.67655419]
[1748424283655,1.0010022,108700.0,108690.0,0.80351537]
[1748424285243,1.0010022,108700.0,108690.0,0.80351476]
[1748424286259,1.0010022,108700.0,108690.0,0.67676034]
[1748424289656,1.0010022,108700.0,108690.0,0.6766294]
[1748424289961,1.0010022,108700.0,108690.0,0.6766296]
[1748424292751,1.0010022,108700.0,108690.0,0.63550827]
[1748424292955,1.0010022,108700.0,108690.0,0.67663066]
[1748424293760,1.0010022,108700.0,108690.0,0.59110268]
[1748424293962,1.0010022,108700.0,108690.0,0.59110443]
[1748424294666,1.0010022,108700.0,108690.0,0.54998204]
[1748424296868,1.0010022,108700.0,108690.0,0.61448204]
[1748424297264,1.0010022,108700.0,108690.0,0.66561791]
[1748424297665,1.0010022,108700.0,108690.0,0.61448204]
[1748424298166,1.0050022,108700.0,108690.0,0.61548204]
[1748424299474,1.0050022,108700.0,108690.0,0.21202997]
[1748424299674,1.0050022,108700.0,108690.0,0.63334997]
[1748424300171,1.12683506,108700.0,108690.0,0.8063187]
[1748424301268,1.12683506,108700.0,108690.0,0.7745187]
[1748424301476,1.12683506,108700.0,108690.0,0.3531987]
[1748424301673,1.12683506,108700.0,108690.0,0.65268584]
[1748424301973,1.12683506,108700.0,108690.0,0.60154997]
[1748424302770,1.12683506,108700.0,108690.0,0.64267393]
[1748424305275,1.12683506,108700.0,108690.0,0.64228598]
[1748424305470,1.12683506,108700.0,108690.0,0.76411884]
[1748424305774,1.12683506,108700.0,108690.0,0.79411884]
[1748424307978,1.24866792,108700.0,108690.0,0.04212396]
[1748424308174,1.2884376,108700.0,108690.0,0.04212396]
[1748424308373,0.1839191,108690.0,108680.0,6e-08]
[1748424308570,0.81858482,108690.0,108680.0,6e-08]
[1748424308774,0.98216093,108690.0,108680.0,6e-08]
[1748424309074,0.76832007,108690.0,108680.0,0.12195292]
[1748424309271,0.72855196,108690.0,108680.0,0.00012006]
[1748424309476,0.76906353,108690.0,108680.0,0.03252006]
[1748424309676,0.76906353,108690.0,108680.0,0.06312006]
[1748424309987,0.77106353,108690.0,108680.0,0.06412006]
[1748424311482,0.73055196,108690.0,108680.0,0.06412006]
[1748424312181,1.09135196,108690.0,108680.0,0.06412006]
[1748424316282,1.09135196,108690.0,108680.0,0.00112006]
[1748424316777,1.09135196,108690.0,108680.0,0.03292006]
[1748424316968,1.09135196,108690.0,108680.0,0.15475292]
[1748424321678,0.9695191,108690.0,108680.0,0.15475292]
[1748424321877,0.9695191,108690.0,108680.0,0.30778578]
[1748424322483,0.9695191,108690.0,108680.0,0.10515397]
[1748424322785,0.9695191,108690.0,108680.0,0.30778578]
[1748424327091,0.9695191,108690.0,108680.0,0.30778578]
[1748424332085,1.09135196,108690.0,108680.0,0.30778578]
[1748424333297,1.09135196,108690.0,108680.0,0.34881969]
[1748424333495,1.09135196,108690.0,108680.0,0.53275569]
[1748424333697,0.9695191,108690.0,108680.0,0.53275569]
[1748424333898,0.9695191,108690.0,108680.0,0.34881969]
[1748424335093,0.9695191,108690.0,108680.0,0.86813969]
[1748424335595,0.9695191,108690.0,108680.0,1.05207569]
[1748424336186,0.9695191,108690.0,108680.0,0.86813969]
[1748424336391,0.9695191,108690.0,108680.0,1.10069536]
[1748424336595,0.9377191,108690.0,108680.0,1.22252822]
[1748424336784,0.9377191,108690.0,108680.0,1.10069536]
[1748424336989,0.9377191,108690.0,108680.0,1.11096473]
[1748424337386,0.5769191,108690.0,108680.0,1.23279759]
[1748424337589,0.5467191,108690.0,108680.0,1.11096473]
[1748424339194,0.5467191,108690.0,108680.0,1.11096382]
[1748424339796,0.3628,108690.0,108680.0,1.18417792]
[1748424340090,0.3628,108690.0,108680.0,1.33279668]
[1748424340505,0.3628,108690.0,108680.0,1.35316085]
[1748424341091,0.3628,108690.0,108680.0,1.35304085]
[1748424341501,0.3628,108690.0,108680.0,1.46998469]
[1748424341691,0.002,108690.0,108680.0,1.56199269]
[1748424341900,0.002,108690.0,108680.0,1.44504885]
[1748424342498,0.002,108690.0,108680.0,1.56196506]
[1748424343389,0.002,108690.0,108680.0,1.56191704]
[1748424344491,0.002,108690.0,108680.0,1.44500083]
[1748424345493,0.002,108690.0,108680.0,1.44498703]
[1748424345902,0.002,108690.0,108680.0,1.44768582]
[1748424346093,0.002,108690.0,108680.0,0.95473837]
[1748424346293,0.002,108690.0,108680.0,1.37593837]
[1748424349506,0.002,108690.0,108680.0,1.28393037]
[1748424349901,0.002,108690.0,108680.0,0.76469037]
[1748424350208,0.3948,108690.0,108680.0,1.06205751]
[1748424350409,0.4252,108690.0,108680.0,1.06217751]
[1748424351793,0.6091191,108690.0,108680.0,1.06217751]
[1748424353308,0.6091191,108690.0,108680.0,0.54297751]
[1748424353508,0.6091191,108690.0,108680.0,1.06217751]
[1748424354402,0.4252,108690.0,108680.0,1.06217751]
[1748424355411,0.6091192,108690.0,108680.0,1.06217751]
[1748424355707,0.4252,108690.0,108680.0,1.06217751]
[1748424355909,0.4252,108690.0,108680.0,1.18401037]
[1748424357008,0.4252,108690.0,108680.0,1.03018584]
[1748424358297,0.4252,108690.0,108680.0,1.07875429]
[1748424358510,0.4252,108690.0,108680.0,1.03018584]
[1748424358711,0.4252,108690.0,108680.0,0.66468726]
[1748424359012,0.4252,108690.0,108680.0,1.03018584]
[1748424360002,0.6091192,108690.0,108680.0,1.07875429]
[1748424360216,0.4252,108690.0,108680.0,1.10935429]
[1748424360607,0.4252,108690.0,108680.0,1.05809856]
[1748424360813,0.4252,108690.0,108680.0,1.06081871]
[1748424361505,0.4252,108690.0,108680.0,2.10101856]
[1748424362410,0.6091192,108690.0,108680.0,2.10101856]
[1748424362612,0.4252,108690.0,108680.0,2.10101856]
[1748424363919,0.4252,108690.0,108680.0,2.17268601]
[1748424366330,0.4252,108690.0,108680.0,2.17260601]